bitfinex-derivatives/quotes_ETHF0:USTF0_20250213
["timestamp","ask_amount","ask_price","bid_price","bid_amount"]
[1739439982553,6.8075406,2684.8,2684.7,0.00559315]
[1739439982758,0.0627206,2684.8,2684.1,0.74499]
[1739439982960,0.74499,2684.2,2684.1,0.74499]
[1739439983156,8.15868982,2684.6,2684.0,0.74503]
[1739439983360,0.74502,2684.1,2684.0,0.74503]
[1739439983756,0.596,2684.5,2683.9,44.0078]
[1739439983959,0.00559315,2684.3,2683.9,44.0078]
[1739439984458,3.27748297,2684.3,2683.8,0.00559315]
[1739439984658,0.74507,2683.9,2683.8,0.00559315]
[1739439985558,0.74518,2683.5,2683.4,3.2078]
[1739439985866,0.5925,2683.8,2683.4,3.2078]
[1739439986162,0.5925,2683.8,2683.5,0.74518]
[1739439986364,0.5925,2683.8,2683.4,3.2078]
[1739439986663,0.74514,2683.7,2683.6,0.74514]
[1739439986965,0.5925,2683.8,2683.4,3.2078]
[1739439986966,0.74512,2683.8,2683.7,0.74512]
[1739439987158,1.679,2684.1,2683.5,40.8]
[1739439987460,0.74514,2683.7,2683.6,0.74514]
[1739439988758,0.5543,2684.0,2683.5,40.8]
[1739439988961,0.74515,2683.7,2683.6,0.74514]
[1739439989260,0.74515,2683.7,2683.5,40.8]
[1739439989261,2.41695,2684.0,2683.7,0.74512]
[1739439989456,0.74513,2683.7,2683.6,0.74515]
[1739439990161,0.74512,2683.8,2683.7,0.74511]
[1739439990363,0.5543,2684.0,2683.5,40.8]
[1739439990565,0.5543,2684.0,2683.7,0.74509]
[1739439990566,0.74511,2683.8,2683.7,0.74509]
[1739439990768,0.74509,2683.9,2683.8,0.74508]
[1739439993067,0.74515,2683.7,2683.6,0.74512]
[1739439993368,0.74515,2683.6,2683.5,0.74518]
[1739439993868,0.74515,2683.7,2683.6,0.74513]
[1739439994065,2.41693,2684.0,2683.5,40.8]
[1739439994269,0.74515,2683.6,2683.5,41.54516]
[1739439994673,1.86278,2683.8,2683.4,3.2078]
[1739439994970,0.74521,2683.4,2683.3,0.00559315]
[1739439995169,0.74521,2683.4,2683.3,0.75083315]
[1739439995965,0.5935,2683.6,2683.3,0.00559315]
[1739439996164,0.5935,2683.6,2683.3,0.75081315]
[1739439996165,0.74521,2683.4,2683.3,0.75081315]
[1739439996467,0.5935,2683.6,2683.3,0.00559315]
[1739439996664,0.5935,2683.6,2683.4,0.74518]
[1739439996665,0.7452,2683.5,2683.4,0.74518]
[1739439997465,0.74521,2683.4,2683.3,0.00559315]
[1739439998271,1.32691,2683.5,2683.4,0.74521]
[1739439998469,0.74521,2683.4,2683.3,0.75080315]
[1739439999373,0.74521,2683.4,2683.3,0.00559315]
[1739439999963,1.32691,2683.5,2683.4,0.74521]
[1739440000164,0.74521,2683.4,2683.3,0.75081315]
[1739440000670,0.74521,2683.4,2683.3,0.00559315]
[1739440001461,0.5817,2683.5,2683.3,0.00559315]
[1739440001680,3.2078,2683.6,2683.3,0.00559315]
[1739440001969,3.2078,2683.6,2683.5,0.74518]
[1739440002471,3.95295,2683.6,2683.5,0.74518]
[1739440002672,3.2078,2683.6,2683.5,0.74518]
[1739440002870,0.74513,2683.7,2683.6,0.74515]
[1739440003170,0.74513,2683.8,2683.7,0.7451]
[1739440003768,3.7983,2683.9,2683.5,0.5898]
[1739440003967,0.74515,2683.6,2683.5,1.33496]
[1739440004169,0.74521,2683.4,2683.3,0.75081315]
[1739440004369,0.74521,2683.4,2683.3,0.75083315]
[1739440005075,0.74521,2683.4,2683.3,0.00559315]
[1739440005868,0.74521,2683.4,2683.3,0.75083315]
[1739440006070,2.41431,2683.8,2683.4,0.74518]
[1739440006071,0.74521,2683.5,2683.4,0.74518]
[1739440006274,0.74521,2683.4,2683.3,0.75081315]
[1739440007777,0.74521,2683.4,2683.3,0.00559315]
[1739440008577,0.74521,2683.4,2683.3,0.75083315]
[1739440009776,0.74521,2683.4,2683.3,0.00559315]
[1739440010786,0.74521,2683.4,2683.3,0.75083315]
[1739440011480,0.74521,2683.4,2683.3,0.75080315]
[1739440011978,0.74521,2683.4,2683.3,0.00559315]
[1739440012376,4.01709982,2683.4,2683.3,0.00559315]
[1739440012576,0.74535,2683.0,2682.9,0.74532]
[1739440012974,5.72416982,2683.4,2682.8,4.3759]
[1739440012975,0.74535,2682.9,2682.8,4.3759]
[1739440013173,0.74535,2682.9,2682.8,3.7985]
[1739440013374,0.74535,2682.9,2682.8,0.5907]
[1739440013981,0.7454,2682.7,2682.6,0.75101315]
[1739440014175,0.7454,2682.7,2682.6,0.00559315]
[1739440016383,0.7454,2682.7,2682.6,0.75102315]
[1739440016681,0.7454,2682.7,2682.6,0.00559315]
[1739440020276,0.7454,2682.7,2682.6,0.75102315]
[1739440020478,1.3346,2682.8,2682.7,0.7454]
[1739440020679,0.7454,2682.7,2682.6,0.75101315]
[1739440021186,0.7454,2682.7,2682.6,0.00559315]
[1739440022280,4.8878,2682.7,2682.0,40.8]
[1739440022485,0.74557,2682.1,2682.0,40.8]
[1739440022682,3.2078,2682.3,2682.0,40.8]
[1739440022884,0.74557,2682.1,2682.0,41.54558]
[1739440023285,4.3252,2682.3,2681.7,4.3185]
[1739440023487,0.74563,2682.0,2681.9,0.74561]
[1739440023882,0.74561,2682.0,2681.9,0.74558]
[1739440024091,4.3252,2682.3,2681.8,42.667856]
[1739440024588,0.74559,2682.1,2682.0,0.74556]
[1739440024783,0.74562,2682.0,2681.9,0.74559]
[1739440025883,6.18902,2682.3,2682.1,0.74555]
[1739440025884,0.74558,2682.2,2682.1,0.74555]
[1739440026085,4.3252,2682.3,2681.8,0.003736]
[1739440026386,0.74562,2682.0,2681.9,0.7456]
[1739440027287,0.74563,2681.9,2681.8,0.749376]
[1739440027485,0.74563,2681.9,2681.8,0.003736]
[1739440027788,4.3252,2682.3,2682.0,0.74558]
[1739440027989,0.74562,2682.0,2681.9,0.74561]
[1739440029290,0.74563,2681.9,2681.8,0.749386]
[1739440029684,0.74563,2681.9,2681.8,0.003736]
[1739440032891,0.77418121,2681.9,2681.8,0.749386]
[1739440033305,0.79372156,2681.9,2681.8,0.749386]
[1739440034393,0.79372156,2681.9,2681.8,0.003736]
[1739440034692,0.79372156,2681.9,2681.8,0.749386]
[1739440034897,0.04809156,2681.9,2681.8,0.749386]
[1739440036191,0.79372156,2681.9,2681.8,0.749386]
[1739440036391,0.04809156,2681.9,2681.8,0.749386]
[1739440036794,3.2078,2683.0,2682.7,0.74538]
[1739440036998,0.80815912,2682.8,2682.7,0.74538]
[1739440037288,0.74539,2682.8,2682.7,0.74538]
[1739440037996,0.74546,2682.6,2682.5,0.74545]
[1739440038885,0.74546,2682.6,2682.4,1.1528]
[1739440038886,0.74541,2682.7,2682.4,1.1528]
[1739440039091,0.74541,2682.7,2682.6,0.74543]
[1739440039893,0.74542,2682.7,2682.6,0.74541]
[1739440040093,4.3348,2683.0,2682.4,1.7233]
[1739440040295,0.74545,2682.6,2682.5,0.74544]
[1739440042094,0.74546,2682.5,2682.4,2.46878]
[1739440042394,0.74545,2682.6,2682.5,0.74544]
[1739440042594,0.00559315,2682.9,2682.4,1.7233]
[1739440042794,0.74542,2682.7,2682.6,0.74539]
[1739440043394,0.00559315,2682.9,2682.5,3.2078]
[1739440043595,0.00559315,2682.9,2682.8,3.95318]
[1739440044998,0.00559315,2682.9,2682.8,13.22506982]
[1739440045191,3.95297,2683.6,2683.5,0.74518]
[1739440045593,1.1389,2683.7,2683.2,1.1713]
[1739440045895,0.74518,2683.6,2683.5,0.74517]
[1739440046096,1.1389,2683.7,2682.9,1.86332]
[1739440046297,1.1389,2683.7,2683.0,0.5492]
[1739440046498,0.74523,2683.4,2683.3,0.74522]
[1739440046994,0.74528,2683.2,2683.1,0.74528]
[1739440047195,0.74529,2683.1,2683.0,0.31098534]
[1739440047397,4.59067982,2683.1,2683.0,0.31098534]
[1739440047692,4.59067982,2683.1,2683.0,0.00559315]
[1739440048000,1.31879,2683.1,2683.0,0.75091315]
[1739440048796,0.5611,2683.2,2683.0,0.00559315]
[1739440048999,1.30637,2683.2,2683.1,0.74529]
[1739440049499,7.05318982,2683.4,2683.0,0.00559315]
[1739440049693,3.7813,2683.4,2683.0,0.00559315]
[1739440049892,0.74526,2683.3,2683.2,0.74525]
[1739440050402,0.74527,2683.2,2683.1,1.90198]
[1739440050697,0.74526,2683.3,2683.2,0.74525]
[1739440051599,0.5735,2683.4,2683.1,1.1567]
[1739440051798,0.74527,2683.2,2683.1,1.90198]
[1739440052388,0.5735,2683.4,2683.1,1.1567]
[1739440052592,0.74526,2683.3,2683.2,0.74525]
[1739440052788,0.5735,2683.4,2683.1,1.1567]
[1739440053003,0.74527,2683.2,2683.1,1.90197]
[1739440053692,0.74527,2683.2,2683.1,0.582]
[1739440053899,0.74529,2683.1,2683.0,0.00559315]
[1739440054097,7.78647982,2683.1,2683.0,0.00559315]
[1739440054392,7.8492418,2683.1,2683.0,0.00559315]
[1739440054801,7.78647982,2683.1,2683.0,0.00559315]
[1739440055100,4.51459,2683.1,2683.0,0.00559315]
[1739440055303,4.51459,2683.1,2683.0,0.75091315]
[1739440055603,4.51459,2683.1,2683.0,0.00559315]
[1739440056712,7.78647982,2683.1,2683.0,0.00559315]
[1739440057496,7.84924345,2683.1,2683.0,0.00559315]
[1739440059305,13.10395345,2683.1,2682.1,0.29887213]
[1739440059501,0.74565,2681.8,2681.7,5.64517]
[1739440059699,1.8638,2682.3,2681.7,4.8995]
[1739440059700,6.47968982,2682.1,2681.7,4.8995]
[1739440059902,0.74565,2681.8,2681.7,4.8995]
[1739440060208,0.74565,2681.8,2681.7,1.6917]
[1739440060608,0.00559315,2682.0,2681.7,1.6917]
[1739440060903,0.74563,2681.9,2681.8,0.74563]
[1739440062002,0.00559315,2682.0,2681.9,0.74563]
[1739440064109,0.00559315,2682.0,2681.9,41.54563]
[1739440066319,7.61338982,2682.7,2682.5,0.74543]
[1739440066520,0.74544,2682.6,2682.5,0.74543]
[1739440067618,0.74548,2682.5,2682.4,0.74547]
[1739440070322,0.74544,2682.6,2682.5,0.74543]
[1739440070521,0.74548,2682.5,2682.4,0.74545]
[1739440071219,4.3415,2682.7,2682.2,1.6389]
[1739440071417,3.7495,2682.7,2682.6,0.74543]
[1739440071615,3.2078,2682.7,2682.6,0.74543]
[1739440071814,3.9532,2682.7,2682.6,0.74543]
[1739440073318,3.2078,2682.7,2682.6,0.74543]
[1739440074024,0.7454,2682.7,2682.6,0.74543]
[1739440074226,1.34258315,2682.8,2682.7,0.7454]
[1739440078026,0.59719315,2682.8,2682.7,0.7454]
[1739440078428,1.34257315,2682.8,2682.7,0.7454]
[1739440078728,0.59719315,2682.8,2682.7,0.7454]
[1739440078924,0.00559315,2682.8,2682.7,0.7454]
[1739440079433,3.2078,2683.3,2682.7,3.7906]
[1739440079627,6.47968982,2683.3,2682.6,0.5954]
[1739440079826,0.7454,2682.7,2682.6,1.34079]
[1739440080922,0.7454,2682.7,2682.6,0.5954]
[1739440081125,3.27188982,2682.7,2682.3,45.1586]
[1739440081318,3.2078,2682.5,2681.9,3.2078]
[1739440081523,0.74556,2682.2,2682.1,0.74554]
[1739440082330,3.2078,2682.5,2682.0,1.864]
[1739440082531,0.5409,2682.6,2682.0,1.864]
[1739440083120,1.1286,2682.7,2682.0,1.864]
[1739440083327,0.74548,2682.5,2682.4,0.74547]
[1739440084230,0.74551,2682.4,2682.3,0.7455]
[1739440084838,1.1286,2682.7,2682.1,1.86393]
[1739440085031,1.1286,2682.7,2682.6,0.74543]
[1739440085032,0.5855,2682.7,2682.6,0.74543]
[1739440085328,0.56289315,2682.9,2682.2,7.02428982]
[1739440085532,0.00559315,2682.9,2682.8,0.74538]
[1739440085828,0.00559315,2682.9,2682.4,1.1052]
[1739440086027,0.74546,2682.6,2682.5,0.74546]
[1739440086229,0.74542,2682.7,2682.6,0.7454]
[1739440087532,0.74546,2682.6,2682.5,0.74545]
[1739440087833,0.74546,2682.5,2682.4,1.29817]
[1739440088029,1.28586,2682.5,2682.4,0.5527]
[1739440088332,0.74552,2682.3,2682.2,0.5446]
[1739440088732,0.5404,2682.5,2682.1,0.74555]
[1739440088936,0.74554,2682.2,2682.1,0.74555]
[1739440089434,0.5892,2682.4,2682.0,0.5709]
[1739440089634,1.28588,2682.5,2682.4,0.74549]
[1739440090132,0.5404,2682.5,2682.4,0.74549]
[1739440091237,1.678,2682.8,2682.7,0.74538]
[1739440091238,0.74539,2682.8,2682.7,0.74538]
[1739440091438,0.5488,2682.8,2682.7,0.74538]
[1739440092336,1.29418,2682.8,2682.7,0.74538]
[1739440095129,0.5488,2682.8,2682.5,0.5749]
[1739440095330,0.74543,2682.7,2682.6,0.74541]
[1739440095731,0.5488,2682.8,2682.3,0.5724]
[1739440095930,0.74549,2682.4,2682.3,0.5724]
[1739440096126,0.74554,2682.3,2682.2,0.74552]
[1739440097229,1.8723,2682.4,2682.3,0.74552]
[1739440099638,1.1268,2682.4,2682.0,1.86399]
[1739440099834,0.74554,2682.3,2682.2,0.74552]
[1739440100134,1.1268,2682.4,2682.1,1.1569]
[1739440100441,0.5843,2682.4,2682.3,0.74552]
[1739440100739,0.5843,2682.4,2682.2,3.2078]
[1739440101037,0.74552,2682.3,2682.2,0.74552]
[1739440101236,0.74554,2682.2,2682.1,1.1569]
[1739440101535,0.74554,2682.2,2682.1,1.90247]
[1739440103236,1.33062,2682.3,2682.2,0.74554]
[1739440103438,0.5843,2682.4,2682.3,0.74552]
[1739440104043,0.5876,2682.6,2682.5,0.74546]
[1739440104635,0.5484,2682.8,2682.7,0.7454]
[1739440104944,1.29378,2682.8,2682.7,0.7454]
[1739440105539,0.5484,2682.8,2682.7,0.7454]
[1739440106243,1.29378,2682.8,2682.7,0.7454]
[1739440106646,0.5484,2682.8,2682.6,0.5853]
[1739440106948,0.7454,2682.7,2682.6,1.33071]
[1739440107138,0.5559,2682.7,2682.2,4.8858]
[1739440107442,0.5559,2682.7,2682.4,0.74547]
[1739440107443,0.74549,2682.5,2682.4,0.74547]
[1739440108536,1.1497,2682.7,2682.2,5.4316]
[1739440108943,1.89515,2682.7,2682.6,0.74543]
[1739440109348,0.74549,2682.5,2682.4,0.74546]
[1739440110146,1.1497,2682.7,2682.6,0.74543]
[1739440110340,0.5484,2682.8,2682.4,1.86371]
[1739440110542,0.74543,2682.7,2682.6,0.7454]
[1739440110745,0.00559315,2682.9,2682.8,0.74538]
[1739440111049,0.00559315,2682.9,2682.8,3.95318]
[1739440111231,0.00559315,2682.9,2682.8,44.75318]
[1739440112040,0.00559315,2682.9,2682.8,44.0078]
[1739440112843,0.75094315,2682.9,2682.8,44.0078]
[1739440113340,0.74538,2682.8,2682.5,1.1667]
[1739440113544,0.74543,2682.6,2682.5,0.59]
[1739440113838,3.02496,2682.8,2682.0,3.2078]
[1739440113839,0.5449,2682.7,2682.0,3.2078]
[1739440114044,3.2078,2682.5,2682.1,0.5666]
[1739440114235,0.74571,2681.6,2681.5,3.27562582]
[1739440114836,0.74571,2681.6,2681.5,0.003736]
[1739440115041,0.74569,2681.7,2681.6,0.7457]
[1739440115239,0.74569,2681.7,2681.5,0.003736]
[1739440115438,0.74569,2681.7,2681.5,0.749456]
[1739440115638,0.74569,2681.7,2681.5,0.749446]
[1739440115840,0.74569,2681.7,2681.6,0.74571]
[1739440116242,0.74569,2681.7,2681.5,0.003736]
[1739440116243,1.1393,2682.1,2681.5,3.27562582]
[1739440116546,3.2078,2682.5,2681.8,3.27188982]
[1739440116748,3.2078,2682.5,2681.9,1.675]
[1739440116749,0.74561,2682.0,2681.9,1.675]
[1739440116942,0.74561,2682.0,2681.9,1.1122]
[1739440119239,1.1805,2682.2,2681.9,1.1122]
[1739440119441,0.7456,2682.0,2681.9,1.1122]
[1739440119740,0.7456,2682.0,2681.9,1.85783]
[1739440120150,0.7456,2682.0,2681.9,1.1122]
[1739440120945,0.7456,2682.0,2681.9,1.85783]
[1739440121440,1.1805,2682.2,2681.9,1.1122]
[1739440121640,0.7456,2682.0,2681.9,1.85781]
[1739440122437,1.1805,2682.2,2681.9,1.1122]
[1739440122642,3.2078,2682.5,2681.9,1.1122]
[1739440122848,3.2078,2682.5,2682.2,0.74552]
[1739440123045,0.74554,2682.3,2682.2,0.74552]
[1739440123247,0.74556,2682.2,2682.1,0.74555]
[1739440123749,3.2078,2682.5,2681.9,1.1122]
[1739440124052,0.74558,2682.2,2682.1,0.74556]
[1739440124647,3.2078,2682.5,2681.9,1.1122]
[1739440124948,0.7456,2682.1,2682.0,0.74558]
[1739440125144,0.7456,2682.1,2682.0,0.7456]
[1739440125546,1.86373,2682.4,2681.9,1.1122]
[1739440125745,0.7456,2682.1,2682.0,0.74558]
[1739440125946,3.2078,2682.5,2682.0,3.2078]
[1739440126146,0.74555,2682.3,2682.2,0.74552]
[1739440126552,3.2078,2682.5,2682.0,5.07179]
[1739440126750,0.74554,2682.3,2682.2,0.74551]
[1739440126951,0.74551,2682.4,2682.3,0.74549]
[1739440127145,3.2078,2682.5,2682.1,0.5693]
[1739440127352,0.74554,2682.3,2682.2,0.74552]
[1739440127553,3.2078,2682.5,2682.1,0.5693]
[1739440127852,0.74557,2682.2,2682.1,0.74555]
[1739440129456,0.74554,2682.3,2682.2,0.74551]
[1739440129949,0.7455,2682.5,2682.4,0.74546]
[1739440130350,0.7455,2682.5,2682.0,5.0718]
[1739440130351,1.1346,2682.6,2682.0,5.0718]
[1739440130551,0.74552,2682.4,2682.3,0.74549]
[1739440130743,1.1346,2682.6,2682.1,1.86391]
[1739440130949,0.74548,2682.5,2682.4,0.74546]
[1739440131149,1.1346,2682.6,2682.2,1.86386]
[1739440131351,1.88004,2682.6,2682.5,0.74546]
[1739440131549,1.88003,2682.6,2682.5,0.74546]
[1739440131855,1.34113,2682.6,2682.5,0.74546]
[1739440132247,3.2078,2682.8,2682.4,1.1278]
[1739440132452,3.95318,2682.8,2682.7,0.7454]
[1739440132854,3.2078,2682.8,2682.5,40.8]
[1739440133054,0.74543,2682.6,2682.5,41.54543]
[1739440133256,0.74542,2682.7,2682.6,0.74541]
[1739440133651,0.74543,2682.6,2682.5,41.54544]
[1739440134350,0.74543,2682.6,2682.5,41.54542]
[1739440134559,3.2078,2682.8,2682.5,40.8]
[1739440134951,3.2078,2682.8,2682.5,41.54545]
[1739440134952,0.74543,2682.6,2682.5,41.54545]
[1739440135353,0.74543,2682.7,2682.6,0.74541]
[1739440135756,0.74543,2682.6,2682.5,41.54542]
[1739440136058,0.55149315,2682.9,2682.5,40.8]
[1739440136360,0.74543,2682.7,2682.6,0.74542]
[1739440136661,0.74543,2682.7,2682.5,40.8]
[1739440136963,0.55149315,2682.9,2682.5,40.8]
[1739440136964,2.41488315,2682.9,2682.5,40.8]
[1739440137257,0.74543,2682.6,2682.5,0.74545]
[1739440137653,0.74543,2682.6,2682.4,41.9278]
[1739440137859,0.74543,2682.6,2682.5,0.74546]
[1739440138958,2.41488315,2682.9,2682.4,41.9278]
[1739440139165,0.74544,2682.7,2682.6,0.74541]
[1739440139358,0.55149315,2682.9,2682.4,41.9278]
[1739440139559,0.74546,2682.6,2682.5,0.74544]
[1739440139759,3.75929315,2682.9,2682.3,3.7824]
[1739440139962,0.74549,2682.4,2682.3,3.2078]
[1739440140162,0.74549,2682.4,2682.3,3.95332]
[1739440141159,1.1067,2682.5,2682.3,3.2078]
[1739440141464,0.74557,2682.1,2682.0,3.2078]
[1739440143264,0.5788,2682.4,2682.3,0.74552]
[1739440143664,1.32429,2682.4,2682.3,0.74552]
[1739440143969,0.5788,2682.4,2682.3,0.74552]
[1739440144270,0.5788,2682.4,2682.3,41.54552]
[1739440145363,1.28549,2682.8,2682.7,0.7454]
[1739440145556,1.0942,2682.8,2682.7,0.7454]
[1739440145963,1.83958,2682.8,2682.7,0.7454]
[1739440146365,0.7454,2682.7,2682.6,0.74542]
[1739440146566,1.0942,2682.8,2682.5,0.5856]
[1739440146965,0.74542,2682.7,2682.6,0.74542]
[1739440147366,1.8396,2682.8,2682.6,0.74541]
[1739440147566,1.8396,2682.8,2682.6,0.74543]
[1739440147768,1.8396,2682.8,2682.5,0.5856]
[1739440147963,1.0942,2682.8,2682.7,0.7454]
[1739440148465,1.83958,2682.8,2682.7,0.7454]
[1739440148661,1.0942,2682.8,2682.7,0.7454]
[1739440149060,1.0942,2682.8,2682.5,0.5856]
[1739440149061,0.00559315,2682.9,2682.5,0.5856]
[1739440149266,0.00559315,2682.9,2682.8,0.74538]
[1739440150269,0.00559315,2682.9,2682.8,1.34238]
[1739440150468,0.00559315,2682.9,2682.8,1.93638]
[1739440152875,0.75094315,2682.9,2682.8,0.74538]
[1739440153180,0.00559315,2682.9,2682.5,1.1829]
[1739440153474,0.74543,2682.7,2682.5,1.1829]
[1739440153776,0.74542,2682.7,2682.6,0.74542]
[1739440154778,0.74543,2682.6,2682.5,1.92835]
[1739440154973,0.74543,2682.6,2682.5,1.1829]
[1739440155177,0.74546,2682.5,2682.4,4.8838]
[1739440155473,1.86352,2682.7,2682.2,40.8]
[1739440155770,0.74552,2682.3,2682.2,40.8]
[1739440155974,0.74555,2682.2,2682.0,5.10807]
[1739440156173,0.5382,2682.2,2682.1,0.74557]
[1739440158669,0.5527,2682.3,2682.2,0.74554]
[1739440159474,1.29822,2682.3,2682.0,45.1625]
[1739440159678,1.29822,2682.3,2682.2,0.74554]
[1739440160073,0.5527,2682.3,2682.2,0.74554]
[1739440160582,0.5642,2682.6,2682.0,45.1625]
[1739440160878,1.85485,2682.6,2682.5,0.74546]
[1739440161073,1.85485,2682.6,2682.0,47.02646]
[1739440161074,1.1094,2682.6,2682.1,3.27188982]
[1739440161283,1.1094,2682.6,2682.5,0.74546]
[1739440161284,1.85484,2682.6,2682.5,0.74546]
[1739440161476,1.1094,2682.6,2682.1,3.27188982]
[1739440161674,0.74546,2682.5,2682.4,0.74547]
[1739440161870,1.1094,2682.6,2682.5,0.74546]
[1739440162179,0.00559315,2682.9,2682.8,0.74538]
[1739440162978,0.00559315,2682.9,2682.6,0.74541]
[1739440162979,0.74542,2682.7,2682.6,0.74541]
[1739440163180,0.74541,2682.7,2682.6,0.74542]
[1739440163683,0.00559315,2682.9,2682.5,1.174]
[1739440163884,0.75095315,2682.9,2682.8,0.74538]
[1739440164075,0.00559315,2682.9,2682.8,0.74538]
[1739440164277,0.75094315,2682.9,2682.8,0.74538]
[1739440164685,0.00559315,2682.9,2682.5,1.174]
[1739440164872,0.00559315,2682.9,2682.6,0.74541]
[1739440164873,0.74541,2682.7,2682.6,0.74541]
[1739440165283,0.74539,2682.8,2682.7,0.7454]
[1739440165778,0.00559315,2682.9,2682.5,1.174]
[1739440165985,0.74538,2682.8,2682.7,0.74538]
[1739440166984,0.00559315,2682.9,2682.5,1.174]
[1739440166985,0.74542,2682.7,2682.6,0.74542]
[1739440167585,0.74539,2682.8,2682.7,0.74539]
[1739440167986,0.00559315,2682.9,2682.8,0.74538]
[1739440168374,0.75094315,2682.9,2682.8,0.74538]
[1739440168573,0.00559315,2682.9,2682.8,0.74538]
[1739440169787,0.75094315,2682.9,2682.8,0.74538]
[1739440169988,0.74542,2682.7,2682.6,0.7454]
[1739440170188,0.74541,2682.8,2682.7,0.74538]
[1739440171283,0.00559315,2682.9,2682.8,0.74538]
[1739440173197,0.75094315,2682.9,2682.8,0.74538]
[1739440175196,0.00559315,2682.9,2682.7,3.2078]
[1739440175396,0.74538,2682.8,2682.7,3.95318]
[1739440175598,1.30668,2682.8,2682.7,3.95318]
[1739440175792,0.5613,2682.8,2682.7,3.95318]
[1739440176398,0.75096315,2682.9,2682.8,0.74538]
[1739440177596,0.00559315,2682.9,2682.7,3.2078]
[1739440177801,0.74538,2682.8,2682.7,3.95319]
[1739440178298,0.74538,2682.8,2682.7,3.2078]
[1739440178600,0.74543,2682.6,2682.5,1.91944]
[1739440179300,1.88343,2682.7,2682.6,0.74543]
[1739440183300,1.138,2682.7,2682.6,0.74543]
[1739440183700,1.8834,2682.7,2682.6,0.74543]
[1739440188712,0.74546,2682.5,2682.4,3.95328]
[1739440189012,1.28865,2682.6,2682.5,0.74546]
[1739440189211,0.5432,2682.6,2682.5,0.74546]
[1739440189512,1.88343,2682.7,2682.6,0.74543]
[1739440191009,1.138,2682.7,2682.6,0.74543]
[1739440192003,1.8834,2682.7,2682.6,0.74543]
[1739440192204,1.138,2682.7,2682.4,3.2078]
[1739440192409,1.88343,2682.7,2682.6,0.74543]
[1739440193005,1.138,2682.7,2682.6,0.74543]
[1739440193810,1.8834,2682.7,2682.6,0.74543]
[1739440194208,1.138,2682.7,2682.6,0.74543]
[1739440195418,0.5686,2682.7,2682.6,0.74543]
[1739440195716,0.75097315,2682.9,2682.8,0.74538]
[1739440197013,0.75097315,2682.9,2682.8,1.31398]
[1739440197209,0.74544,2682.7,2682.6,0.74541]
[1739440197518,0.74546,2682.6,2682.5,0.74545]
[1739440197707,1.8635,2682.8,2682.4,4.52187]
[1739440197708,0.74546,2682.5,2682.4,4.52187]
[1739440197912,1.31556,2682.5,2682.4,4.52187]
[1739440198516,1.31556,2682.5,2682.4,3.95327]
[1739440200821,1.31556,2682.5,2682.4,3.95329]
[1739440201820,0.5701,2682.5,2682.4,3.95329]
[1739440202020,1.31556,2682.5,2682.4,3.95329]
[1739440202323,0.5701,2682.5,2682.4,3.95329]
[1739440202823,0.75094315,2682.9,2682.8,0.74538]
[1739440203022,1.29394315,2682.9,2682.8,0.74538]
[1739440205429,0.54859315,2682.9,2682.6,0.5848]
[1739440205623,1.29396315,2682.9,2682.8,0.74538]
[1739440207226,0.00559315,2682.9,2682.8,0.74538]
[1739440207924,0.00559315,2682.9,2682.8,1.32088]
[1739440211021,1.28941,2683.5,2683.4,0.74521]
[1739440211330,1.87685,2683.7,2683.6,0.74515]
[1739440211528,0.74516,2683.6,2683.5,0.74516]
[1739440212123,1.1317,2683.7,2683.3,0.5718]
[1739440212426,0.74517,2683.6,2683.5,0.74517]
[1739440213034,0.74519,2683.5,2683.4,0.7452]
[1739440213343,1.1317,2683.7,2683.3,1.32260315]
[1739440213536,0.74521,2683.4,2683.3,1.32260315]
[1739440213736,0.74521,2683.4,2683.3,0.00559315]
[1739440218530,0.74521,2683.4,2683.3,0.75083315]
[1739440218731,0.74521,2683.4,2683.3,0.00559315]
[1739440220235,0.74521,2683.4,2683.3,0.75083315]
[1739440220436,0.74521,2683.4,2683.3,0.00559315]
[1739440223035,0.74521,2683.4,2683.3,0.75083315]
[1739440224034,0.74521,2683.4,2683.3,0.75080315]
[1739440224426,0.74521,2683.4,2683.3,41.55080315]
[1739440224830,3.2078,2683.5,2683.3,41.55080315]
[1739440225031,0.74521,2683.4,2683.3,41.55080315]
[1739440225241,0.74521,2683.4,2683.3,0.00559315]
[1739440225627,0.74521,2683.4,2683.3,0.75083315]
[1739440226234,0.74521,2683.4,2683.3,0.00559315]
[1739440226638,0.74521,2683.4,2683.3,0.75083315]
[1739440227039,0.74521,2683.4,2683.3,0.00559315]
[1739440227335,0.74521,2683.4,2683.3,0.75083315]
[1739440228745,0.74521,2683.4,2683.3,0.00559315]
[1739440229228,0.74521,2683.4,2683.3,0.75083315]
[1739440229428,0.74521,2683.4,2683.3,0.00559315]
[1739440229838,0.74521,2683.4,2683.3,0.75083315]
[1739440230141,0.74521,2683.4,2683.3,0.00559315]
[1739440230740,0.74521,2683.4,2683.3,0.75083315]
[1739440231442,0.74521,2683.4,2683.3,0.00559315]
[1739440231835,0.74521,2683.4,2683.3,0.75083315]
[1739440232540,3.95299,2683.5,2683.4,0.74521]
[1739440232738,3.2078,2683.5,2683.4,0.74521]
[1739440233542,3.2078,2683.5,2683.4,1.30531]
[1739440234238,0.74513,2683.7,2683.6,0.74515]
[1739440234439,3.95850315,2683.8,2683.7,0.74513]
[1739440235431,3.21339315,2683.8,2683.7,0.74513]
[1739440235636,3.95849315,2683.8,2683.7,0.74513]
[1739440235848,0.00559315,2683.8,2683.7,0.74513]
[1739440239550,0.5606,2684.3,2684.2,0.74499]
[1739440239741,1.30556,2684.3,2684.2,0.74499]
[1739440240646,0.745,2684.2,2684.1,0.74499]